[Event "Eurasia Open Cup 2019"]
[Site "Ekaterinburg"]
[Date "2019.07.31"]
[Round "1.35"]
[White "Popov, Mikhail"]
[Black "Karelina, Viktoriya"]
[Result "1-0"]
[ECO "C22"]
[WhiteElo "2397"]
[BlackElo "1918"]
[Annotator "NA"]
[PlyCount "53"]
[EventDate "2019.07.31"]
[EventType "swiss"]
[EventCountry "RUS"]
[SourceTitle "playchess.com"]
[Source "ChessBase"]
[SourceQuality "1"]
[TimeControl "5400+30"]

1. e4 {[%emt 0:42:08]} e5 {[%emt 0:21:24]} 2. d4 {[%emt 0:17:15]} exd4 {[%emt 0:00:15]} 3. Qxd4 {[%emt 0:00:33]} Nc6 {[%emt 0:11:42]} 4. Qe3 {[%emt 0:15:02]} Nge7 {[%emt 0:10:19]} 5. Bc4 {[%emt 0:07:44]} d5 {[%emt 0:03:52]} 6. Bxd5 {[%emt 0:00:33]} Nxd5 {[%emt 0:03:32]} 7. exd5+ {[%emt 0:01:04]} Ne7 {[%emt 0:01:26]} 8. c4 {[%emt 0:02:31]} b5 {[%emt 0:03:09]} 9. b3 {[%emt 0:03:08]} Qd6 {[%emt 0:02:24]} 10. Ba3 {[%emt 0:00:29]} Qg6 {[%emt 0:01:16]} 11. Nf3 {[%emt 0:00:33]} Qxg2 {[%emt 0:00:14]} 12. Rg1 {[%emt 0:00:11]} Qh3 {[%emt 0:03:34]} 13. Rxg7 {[%emt 0:00:08]} Rb8 {[%emt 0:04:20]} 14. Bc5 {[%emt 0:00:47]} h6 {[%emt 0:00:42]} 15. Rg3 {[%emt 0:00:22]} Qh5 {[%emt 0:00:52]} 16. Bd4 {[%emt 0:00:05]} Rh7 {[%emt 0:00:42]} 17. Nc3 {[%emt 0:00:37]} Kd8 {[%emt 0:00:20]} 18. Bf6 {[%emt 0:05:50]} Bg4 {[%emt 0:28:57]} 19. Ne5 {[%emt 0:00:30]} Qxh2 {[%emt 0:00:30]} 20. Rxg4 {[%emt 0:00:30]} Qh1+ {[%emt 0:00:30]} 21. Ke2 {[%emt 0:00:30]} Qxa1 {[%emt 0:00:30]} 22. Bxe7+ {[%emt 0:00:30]} Kc8 {[%emt 0:00:30]} 23. Rg8 {[%emt 0:00:30]} Qb2+ {[%emt 0:00:30]} 24. Kf3 {[%emt 0:00:30]} Rb6 {[%emt 0:00:30]} 25. Rxf8+ {[%emt 0:00:30]} Kb7 {[%emt 0:00:30]} 26. Nc6 {[%emt 0:00:30]} bxc4 {[%emt 0:00:30]} 27. Na4 {[%emt 0:00:30]} 1-0

[Event "Eurasia Open Cup 2019"]
[Site "Ekaterinburg"]
[Date "2019.07.31"]
[Round "1.36"]
[White "Gerasimova, Olga"]
[Black "Cherniaev, Alexander"]
[Result "0-1"]
[ECO "B08"]
[WhiteElo "1917"]
[BlackElo "2396"]
[Annotator "NA"]
[PlyCount "90"]
[EventDate "2019.07.31"]
[EventType "swiss"]
[EventCountry "RUS"]
[SourceTitle "playchess.com"]
[Source "ChessBase"]
[SourceQuality "1"]
[TimeControl "5400+30"]

1. e4 {[%emt 0:17:11]} g6 {[%emt 0:45:12]} 2. d4 {[%emt 0:01:15]} Bg7 {[%emt 0:01:53]} 3. Nf3 {[%emt 0:00:38]} d6 {[%emt 0:08:40]} 4. h3 {[%emt 0:10:47]} Nf6 {[%emt 0:03:37]} 5. Nc3 {[%emt 0:00:00]} c6 {[%emt 0:00:19]} 6. Be2 {[%emt 0:01:05]} O-O {[%emt 0:00:55]} 7. O-O {[%emt 0:05:36]} a5 {[%emt 0:06:05]} 8. a4 {[%emt 0:02:28]} Na6 {[%emt 0:00:26]} 9. Be3 {[%emt 0:00:52]} Nb4 {[%emt 0:01:31]} 10. Ne1 {[%emt 0:01:16]} Nd7 {[%emt 0:00:00]} 11. Qd2 {[%emt 0:00:36]} f5 {[%emt 0:02:55]} 12. exf5 {[%emt 0:03:58]} gxf5 {[%emt 0:00:26]} 13. Bh6 {[%emt 0:00:00]} Bxh6 {[%emt 0:03:38]} 14. Qxh6 {[%emt 0:00:09]} Nf6 {[%emt 0:00:09]} 15. f4 {[%emt 0:05:08]} Kh8 {[%emt 0:00:09]} 16. Bc4 {[%emt 0:00:58]} Bd7 {[%emt 0:00:13]} 17. Rf3 {[%emt 0:00:12]} e6 {[%emt 0:00:46]} 18. Rg3 {[%emt 0:01:42]} Qe7 {[%emt 0:03:06]} 19. Rc1 {[%emt 0:05:35]} Rg8 {[%emt 0:03:49]} 20. Rxg8+ {[%emt 0:00:07]} Rxg8 {[%emt 0:04:41]} 21. Nf3 {[%emt 0:00:15]} Ne4 {[%emt 0:00:14]} 22. Nxe4 {[%emt 0:01:51]} fxe4 {[%emt 0:08:53]} 23. Ng5 {[%emt 0:00:10]} d5 {[%emt 0:02:04]} 24. c3 {[%emt 0:00:08]} Na6 {[%emt 0:00:16]} 25. Be2 {[%emt 0:00:08]} Rg6 {[%emt 0:00:08]} 26. Qh4 {[%emt 0:00:10]} h6 {[%emt 0:00:15]} 27. Nf3 {[%emt 0:00:21]} Qxh4 {[%emt 0:00:10]} 28. Nxh4 {[%emt 0:00:15]} Rg8 {[%emt 0:03:30]} 29. Bh5 {[%emt 0:41:39]} Kg7 {[%emt 0:00:30]} 30. Ng6 {[%emt 0:00:30]} Be8 {[%emt 0:00:30]} 31. f5 {[%emt 0:00:30]} exf5 {[%emt 0:00:30]} 32. Nf4 {[%emt 0:00:30]} Bxh5 {[%emt 0:00:30]} 33. Nxh5+ {[%emt 0:00:30]} Kg6 {[%emt 0:00:30]} 34. Nf4+ {[%emt 0:00:30]} Kf7 {[%emt 0:00:30]} 35. b4 {[%emt 0:00:30]} Nc7 {[%emt 0:00:30]} 36. c4 {[%emt 0:00:30]} Ne6 {[%emt 0:00:30]} 37. Nxe6 {[%emt 0:00:30]} Kxe6 {[%emt 0:00:30]} 38. bxa5 {[%emt 0:00:30]} f4 {[%emt 0:00:30]} 39. Kf2 {[%emt 0:00:30]} Ra8 {[%emt 0:00:30]} 40. Rb1 {[%emt 0:00:30]} Rxa5 {[%emt 0:00:30]} 41. Rxb7 {[%emt 0:00:30]} Rxa4 {[%emt 0:00:30]} 42. cxd5+ {[%emt 0:00:30]} Kxd5 {[%emt 0:00:30]} 43. Rf7 {[%emt 0:00:30]} Ra2+ {[%emt 0:00:30]} 44. Kf1 {[%emt 0:00:30]} Kxd4 {[%emt 0:00:30]} 45. Rxf4 {[%emt 0:00:30]} Ke5 {[%emt 0:00:30]} 0-1

[Event "Eurasia Open Cup 2019"]
[Site "Ekaterinburg"]
[Date "2019.07.31"]
[Round "1.37"]
[White "Bivol, Alina"]
[Black "Rossal, Valeriy I."]
[Result "1-0"]
[ECO "A49"]
[WhiteElo "2391"]
[BlackElo "1914"]
[Annotator "NA"]
[PlyCount "79"]
[EventDate "2019.07.31"]
[EventType "swiss"]
[EventCountry "RUS"]
[SourceTitle "playchess.com"]
[Source "ChessBase"]
[SourceQuality "1"]
[TimeControl "5400+30"]

1. Nf3 {[%emt 0:52:42]} Nf6 {[%emt 0:31:21]} 2. g3 {[%emt 0:04:20]} g6 {[%emt 0:01:36]} 3. c4 {[%emt 0:06:38]} Bg7 {[%emt 0:06:10]} 4. Bg2 {[%emt 0:00:47]} O-O {[%emt 0:00:00]} 5. d4 {[%emt 0:00:01]} c5 {[%emt 0:00:00]} 6. O-O {[%emt 0:01:53]} cxd4 {[%emt 0:11:38]} 7. Qxd4 {[%emt 0:00:43]} Nc6 {[%emt 0:03:58]} 8. Qd3 {[%emt 0:00:13]} d5 {[%emt 0:02:26]} 9. cxd5 {[%emt 0:03:09]} Bf5 {[%emt 0:00:43]} 10. Qa3 {[%emt 0:00:21]} Nxd5 {[%emt 0:03:35]} 11. Rd1 {[%emt 0:00:59]} e6 {[%emt 0:01:21]} 12. Nc3 {[%emt 0:00:48]} Qb6 {[%emt 0:00:19]} 13. Bd2 {[%emt 0:00:11]} Rfd8 {[%emt 0:01:23]} 14. Rac1 {[%emt 0:01:55]} Nxc3 {[%emt 0:01:49]} 15. bxc3 {[%emt 0:01:14]} Qb5 {[%emt 0:03:43]} 16. Bf1 {[%emt 0:00:51]} Bf8 {[%emt 0:01:46]} 17. Qb3 {[%emt 0:02:19]} Qxb3 {[%emt 0:00:24]} 18. axb3 {[%emt 0:00:02]} Ba3 {[%emt 0:01:28]} 19. Bg5 {[%emt 0:01:37]} Re8 {[%emt 0:07:59]} 20. Ra1 {[%emt 0:04:37]} Bb2 {[%emt 0:01:50]} 21. Ra4 {[%emt 0:00:29]} Bxc3 {[%emt 0:03:23]} 22. Rc4 {[%emt 0:00:32]} Bg7 {[%emt 0:00:50]} 23. g4 {[%emt 0:01:33]} Na5 {[%emt 0:00:13]} 24. Ra4 {[%emt 0:00:13]} Bc2 {[%emt 0:01:05]} 25. Rc1 {[%emt 0:00:30]} Bxb3 {[%emt 0:00:03]} 26. Rxa5 {[%emt 0:00:59]} b6 {[%emt 0:00:25]} 27. Ra6 {[%emt 0:00:13]} Bd5 {[%emt 0:14:02]} 28. Rc7 {[%emt 0:14:11]} b5 {[%emt 0:00:30]} 29. Nd2 {[%emt 0:00:30]} Rec8 {[%emt 0:00:30]} 30. Raxa7 {[%emt 0:00:30]} Rxc7 {[%emt 0:00:30]} 31. Rxc7 {[%emt 0:00:30]} Be5 {[%emt 0:00:30]} 32. Rc5 {[%emt 0:00:30]} f6 {[%emt 0:00:30]} 33. e4 {[%emt 0:00:30]} Ba2 {[%emt 0:00:30]} 34. Rxb5 {[%emt 0:00:30]} Rc8 {[%emt 0:00:30]} 35. Be3 {[%emt 0:00:30]} Rc1 {[%emt 0:00:30]} 36. Ra5 {[%emt 0:00:30]} Rc2 {[%emt 0:00:30]} 37. Bd3 {[%emt 0:00:30]} Rc3 {[%emt 0:00:30]} 38. Rxa2 {[%emt 0:00:30]} Rxd3 {[%emt 0:00:30]} 39. h3 {[%emt 0:00:30]} g5 {[%emt 0:00:30]} 40. Kf1 {[%emt 0:00:30]} 1-0

[Event "Eurasia Open Cup 2019"]
[Site "Ekaterinburg"]
[Date "2019.07.31"]
[Round "1.38"]
[White "Dolgaeva, Evgenia"]
[Black "Kotlyar, Kirill"]
[Result "0-1"]
[ECO "A08"]
[WhiteElo "1909"]
[BlackElo "2387"]
[Annotator "NA"]
[PlyCount "65"]
[EventDate "2019.07.31"]
[EventType "swiss"]
[EventCountry "RUS"]
[SourceTitle "playchess.com"]
[Source "ChessBase"]
[SourceQuality "1"]
[TimeControl "5400+30"]

1. e4 {[%emt 1:30:00]} c5 {[%emt 1:29:30]} 2. Nf3 {[%emt 0:00:09]} Nc6 {[%emt 0:01:00]} 3. d3 {[%emt 0:00:51]} g6 {[%emt 0:00:30]} 4. g3 {[%emt 0:00:10]} Bg7 {[%emt 0:00:30]} 5. Bg2 {[%emt 0:00:50]} e6 {[%emt 0:00:30]} 6. O-O {[%emt 0:00:30]} Nge7 {[%emt 0:00:30]} 7. Nbd2 {[%emt 0:00:30]} O-O {[%emt 0:00:30]} 8. c3 {[%emt 0:00:03]} d5 {[%emt 0:00:03]} 9. Qe2 {[%emt 0:00:03]} b5 {[%emt 0:00:57]} 10. c4 {[%emt 0:01:24]} bxc4 {[%emt 0:00:30]} 11. dxc4 {[%emt 0:00:30]} Ba6 {[%emt 0:00:30]} 12. Rb1 {[%emt 0:00:30]} dxc4 {[%emt 0:00:30]} 13. Nxc4 {[%emt 0:00:30]} Na5 {[%emt 0:00:30]} 14. b3 {[%emt 0:00:14]} Nxc4 {[%emt 0:00:30]} 15. bxc4 {[%emt 0:00:46]} Nc6 {[%emt 0:00:22]} 16. e5 {[%emt 0:00:30]} Rb8 {[%emt 0:00:28]} 17. Rxb8 {[%emt 0:00:30]} Qxb8 {[%emt 0:00:26]} 18. Bf4 {[%emt 0:00:30]} Qb4 {[%emt 0:00:07]} 19. Rc1 {[%emt 0:00:30]} Rd8 {[%emt 0:01:03]} 20. Bg5 {[%emt 0:00:30]} Nd4 {[%emt 0:00:13]} 21. Qd3 {[%emt 0:00:06]} Rd7 {[%emt 0:00:49]} 22. Kh1 {[%emt 0:01:24]} h6 {[%emt 0:01:02]} 23. Be3 {[%emt 0:00:30]} Qb2 {[%emt 0:00:30]} 24. a3 {[%emt 0:00:30]} Qb3 {[%emt 0:00:30]} 25. Rc3 {[%emt 0:00:30]} Qa2 {[%emt 0:00:30]} 26. h3 {[%emt 0:00:30]} Bb7 {[%emt 0:00:30]} 27. Bxd4 {[%emt 0:00:30]} Bxf3 {[%emt 0:00:30]} 28. Bxf3 {[%emt 0:00:30]} Rxd4 {[%emt 0:00:30]} 29. Qe3 {[%emt 0:00:30]} Bxe5 {[%emt 0:00:30]} 30. Kg2 {[%emt 0:00:30]} Bg7 {[%emt 0:00:30]} 31. Rb3 {[%emt 0:00:30]} Rd2 {[%emt 0:00:30]} 32. Rb8+ {[%emt 0:00:30]} Kh7 {[%emt 0:00:30]} 33. Qxc5 {[%emt 0:00:30]} 0-1

[Event "Eurasia Open Cup 2019"]
[Site "Ekaterinburg"]
[Date "2019.07.31"]
[Round "1.39"]
[White "Kanter, Eduard"]
[Black "Romanov, Vasily"]
[Result "1/2-1/2"]
[ECO "E06"]
[WhiteElo "2384"]
[BlackElo "1906"]
[Annotator "NA"]
[PlyCount "59"]
[EventDate "2019.07.31"]
[EventType "swiss"]
[EventCountry "RUS"]
[SourceTitle "playchess.com"]
[Source "ChessBase"]
[SourceQuality "1"]
[TimeControl "5400+30"]

1. d4 {[%emt 0:43:11]} Nf6 {[%emt 0:12:28]} 2. c4 {[%emt 0:00:32]} e6 {[%emt 0:01:08]} 3. Nc3 {[%emt 0:00:29]} d5 {[%emt 0:00:01]} 4. Nf3 {[%emt 0:00:02]} Be7 {[%emt 0:04:10]} 5. g3 {[%emt 0:02:09]} O-O {[%emt 0:06:32]} 6. Bg2 {[%emt 0:08:18]} dxc4 {[%emt 0:08:52]} 7. Ne5 {[%emt 0:22:10]} Nc6 {[%emt 0:02:12]} 8. Bxc6 {[%emt 0:02:40]} bxc6 {[%emt 0:21:09]} 9. Nxc6 {[%emt 0:00:02]} Qe8 {[%emt 0:09:01]} 10. Nxe7+ {[%emt 0:04:17]} Qxe7 {[%emt 0:00:08]} 11. Qa4 {[%emt 0:01:21]} e5 {[%emt 0:02:12]} 12. Qxc4 {[%emt 0:02:40]} Bb7 {[%emt 0:04:14]} 13. O-O {[%emt 0:01:45]} Rad8 {[%emt 0:11:46]} 14. dxe5 {[%emt 0:00:05]} Qxe5 {[%emt 0:00:08]} 15. Bf4 {[%emt 0:00:36]} Qh5 {[%emt 0:00:40]} 16. f3 {[%emt 0:01:01]} Qh3 {[%emt 0:02:41]} 17. Bg5 {[%emt 0:02:35]} Rd6 {[%emt 0:00:12]} 18. Rad1 {[%emt 0:00:49]} h5 {[%emt 0:00:30]} 19. Bxf6 {[%emt 0:00:30]} Rxf6 {[%emt 0:00:30]} 20. Nd5 {[%emt 0:00:30]} Bxd5 {[%emt 0:00:30]} 21. Rxd5 {[%emt 0:00:30]} Rg6 {[%emt 0:11:26]} 22. Qf4 {[%emt 0:04:48]} Re8 {[%emt 0:00:30]} 23. e4 {[%emt 0:00:30]} Ree6 {[%emt 0:00:30]} 24. Rd8+ {[%emt 0:00:30]} Kh7 {[%emt 0:00:30]} 25. Qf5 {[%emt 0:00:30]} Qh4 {[%emt 0:00:30]} 26. Rd5 {[%emt 0:00:30]} Kh6 {[%emt 0:00:30]} 27. Kg2 {[%emt 0:00:30]} Ref6 {[%emt 0:00:30]} 28. Qc8 {[%emt 0:00:30]} Kh7 {[%emt 0:00:30]} 29. Rd8 {[%emt 0:00:30]} Rg5 {[%emt 0:00:30]} 30. Rh1 {[%emt 0:00:30]} 1/2-1/2

[Event "Eurasia Open Cup 2019"]
[Site "Ekaterinburg"]
[Date "2019.07.31"]
[Round "1.40"]
[White "Kolupaev, Vadim"]
[Black "Guseva, Marina"]
[Result "0-1"]
[ECO "B26"]
[WhiteElo "1900"]
[BlackElo "2379"]
[Annotator "NA"]
[PlyCount "102"]
[EventDate "2019.07.31"]
[EventType "swiss"]
[EventCountry "RUS"]
[SourceTitle "playchess.com"]
[Source "ChessBase"]
[SourceQuality "1"]
[TimeControl "5400+30"]

1. e4 {[%emt 1:30:00]} c5 {[%emt 1:30:00]} 2. Nc3 {[%emt 0:00:30]} d6 {[%emt 0:00:30]} 3. g3 {[%emt 0:00:30]} Nc6 {[%emt 0:00:30]} 4. Bg2 {[%emt 0:00:30]} g6 {[%emt 0:00:30]} 5. Nge2 {[%emt 0:00:30]} Bg7 {[%emt 0:00:30]} 6. O-O {[%emt 0:00:30]} e6 {[%emt 0:00:30]} 7. d3 {[%emt 0:00:30]} Nge7 {[%emt 0:00:30]} 8. Be3 {[%emt 0:00:30]} Nd4 {[%emt 0:00:30]} 9. Qd2 {[%emt 0:00:00]} O-O {[%emt 0:00:27]} 10. Rae1 {[%emt 0:01:00]} Bd7 {[%emt 0:00:33]} 11. Nd1 {[%emt 0:00:30]} Ba4 {[%emt 0:00:30]} 12. b3 {[%emt 0:00:09]} Bc6 {[%emt 0:00:30]} 13. c3 {[%emt 0:00:51]} Nxe2+ {[%emt 0:00:30]} 14. Rxe2 {[%emt 0:00:30]} a5 {[%emt 0:00:26]} 15. Bh6 {[%emt 0:00:24]} a4 {[%emt 0:00:34]} 16. Bxg7 {[%emt 0:00:36]} Kxg7 {[%emt 0:00:14]} 17. f4 {[%emt 0:00:30]} axb3 {[%emt 0:00:46]} 18. axb3 {[%emt 0:00:30]} Qb6 {[%emt 0:00:20]} 19. f5 {[%emt 0:00:07]} Ng8 {[%emt 0:00:40]} 20. Ne3 {[%emt 0:00:53]} Qxb3 {[%emt 0:00:17]} 21. Ng4 {[%emt 0:00:10]} Ra3 {[%emt 0:00:30]} 22. f6+ {[%emt 0:00:50]} Kh8 {[%emt 0:00:43]} 23. Rc1 {[%emt 0:00:30]} e5 {[%emt 0:00:30]} 24. Rf2 {[%emt 0:00:09]} Qe6 {[%emt 0:00:30]} 25. Qg5 {[%emt 0:00:49]} Rfa8 {[%emt 0:00:30]} 26. Bh3 {[%emt 0:00:32]} Qe8 {[%emt 0:00:30]} 27. Ne3 {[%emt 0:00:30]} Ra1 {[%emt 0:00:30]} 28. Rxa1 {[%emt 0:00:27]} Rxa1+ {[%emt 0:00:30]} 29. Bf1 {[%emt 0:00:33]} Qe6 {[%emt 0:00:30]} 30. Ng4 {[%emt 0:00:16]} Bd7 {[%emt 0:00:14]} 31. Nh6 {[%emt 0:00:08]} Qe8 {[%emt 0:00:16]} 32. Kg2 {[%emt 0:00:02]} b5 {[%emt 0:01:30]} 33. h4 {[%emt 0:02:04]} Qf8 {[%emt 0:00:30]} 34. Nxg8 {[%emt 0:00:30]} Kxg8 {[%emt 0:00:30]} 35. Qe3 {[%emt 0:00:30]} h6 {[%emt 0:00:30]} 36. d4 {[%emt 0:00:30]} Kh7 {[%emt 0:00:30]} 37. Rb2 {[%emt 0:00:30]} exd4 {[%emt 0:00:30]} 38. cxd4 {[%emt 0:00:30]} c4 {[%emt 0:00:30]} 39. Qf4 {[%emt 0:00:30]} c3 {[%emt 0:00:30]} 40. Rc2 {[%emt 0:00:30]} b4 {[%emt 0:00:30]} 41. Bc4 {[%emt 0:00:30]} Qe8 {[%emt 0:00:30]} 42. Bd5 {[%emt 0:00:30]} Ra6 {[%emt 0:00:30]} 43. h5 {[%emt 0:00:30]} g5 {[%emt 0:00:30]} 44. Qf1 {[%emt 0:00:30]} Rb6 {[%emt 0:00:30]} 45. Qd3 {[%emt 0:00:30]} Be6 {[%emt 0:00:30]} 46. Re2 {[%emt 0:00:30]} Kg8 {[%emt 0:00:30]} 47. Qc4 {[%emt 0:00:30]} Rb8 {[%emt 0:00:30]} 48. Kf2 {[%emt 0:00:30]} Rc8 {[%emt 0:00:30]} 49. Qb3 {[%emt 0:00:30]} Bxd5 {[%emt 0:00:30]} 50. exd5 {[%emt 0:00:30]} Qxe2+ {[%emt 0:00:30]} 51. Kxe2 {[%emt 0:00:30]} c2 {[%emt 0:00:30]} 0-1

[Event "Eurasia Open Cup 2019"]
[Site "Ekaterinburg"]
[Date "2019.07.31"]
[Round "1.41"]
[White "Chekletsov, Ilya"]
[Black "Pauli, Stanislav"]
[Result "1-0"]
[ECO "A50"]
[WhiteElo "2374"]
[BlackElo "1898"]
[Annotator "NA"]
[PlyCount "85"]
[EventDate "2019.07.31"]
[EventType "swiss"]
[EventCountry "RUS"]
[SourceTitle "playchess.com"]
[Source "ChessBase"]
[SourceQuality "1"]
[TimeControl "5400+30"]

1. d4 {[%emt 0:47:56]} Nf6 {[%emt 0:05:54]} 2. c4 {[%emt 0:00:59]} b6 {[%emt 0:00:13]} 3. a3 {[%emt 0:04:47]} Bb7 {[%emt 0:01:08]} 4. Nc3 {[%emt 0:04:47]} g6 {[%emt 0:00:49]} 5. d5 {[%emt 0:08:55]} Bg7 {[%emt 0:00:30]} 6. g3 {[%emt 0:01:53]} O-O {[%emt 0:01:16]} 7. Bg2 {[%emt 0:01:55]} d6 {[%emt 0:01:44]} 8. Nf3 {[%emt 0:00:37]} c5 {[%emt 0:15:43]} 9. O-O {[%emt 0:00:40]} Na6 {[%emt 0:00:05]} 10. e4 {[%emt 0:00:00]} Nd7 {[%emt 0:00:06]} 11. Re1 {[%emt 0:02:34]} Nc7 {[%emt 0:00:57]} 12. Bf4 {[%emt 0:00:06]} Ne5 {[%emt 0:00:06]} 13. Nxe5 {[%emt 0:02:18]} dxe5 {[%emt 0:00:42]} 14. Be3 {[%emt 0:01:06]} Ba6 {[%emt 0:04:01]} 15. Bf1 {[%emt 0:01:09]} f5 {[%emt 0:00:00]} 16. f3 {[%emt 0:05:28]} f4 {[%emt 0:01:13]} 17. Bf2 {[%emt 0:04:13]} fxg3 {[%emt 0:00:58]} 18. hxg3 {[%emt 0:01:48]} Qd6 {[%emt 0:07:18]} 19. Be3 {[%emt 0:03:39]} h5 {[%emt 0:00:05]} 20. Be2 {[%emt 0:01:53]} Qf6 {[%emt 0:00:28]} 21. Qd2 {[%emt 0:01:00]} Qd6 {[%emt 0:00:14]} 22. Kg2 {[%emt 0:00:02]} Rad8 {[%emt 0:00:46]} 23. Rab1 {[%emt 0:01:00]} Ne6 {[%emt 0:00:39]} 24. dxe6 {[%emt 0:00:29]} Qxd2 {[%emt 0:00:04]} 25. Bxd2 {[%emt 0:00:15]} Rxd2 {[%emt 0:00:07]} 26. Red1 {[%emt 0:01:15]} Rfd8 {[%emt 0:00:11]} 27. Rxd2 {[%emt 0:00:42]} Rxd2 {[%emt 0:00:05]} 28. Kf1 {[%emt 0:02:34]} Bc8 {[%emt 0:58:38]} 29. Ke1 {[%emt 0:00:30]} Rd8 {[%emt 0:00:30]} 30. Nb5 {[%emt 0:00:30]} Bxe6 {[%emt 0:00:30]} 31. Nxa7 {[%emt 0:00:30]} Kf7 {[%emt 0:00:30]} 32. b4 {[%emt 0:00:30]} cxb4 {[%emt 0:00:30]} 33. axb4 {[%emt 0:00:30]} Ra8 {[%emt 0:00:30]} 34. Nc6 {[%emt 0:00:30]} Bd7 {[%emt 0:00:30]} 35. b5 {[%emt 0:00:30]} Bf6 {[%emt 0:00:30]} 36. Nb4 {[%emt 0:00:30]} e6 {[%emt 0:00:30]} 37. Rd1 {[%emt 0:00:30]} Ke7 {[%emt 0:00:30]} 38. Na6 {[%emt 0:00:30]} Bc8 {[%emt 0:00:30]} 39. c5 {[%emt 0:00:30]} Bxa6 {[%emt 0:00:30]} 40. bxa6 {[%emt 0:00:30]} bxc5 {[%emt 0:00:30]} 41. Rb1 {[%emt 0:00:30]} Kd7 {[%emt 0:00:30]} 42. Rb7+ {[%emt 0:00:30]} Kc6 {[%emt 0:00:30]} 43. Bb5+ {[%emt 0:00:30]} 1-0

[Event "Eurasia Open Cup 2019"]
[Site "Ekaterinburg"]
[Date "2019.07.31"]
[Round "1.42"]
[White "Svetlova, Ksenia"]
[Black "Tunik, Gennady"]
[Result "0-1"]
[ECO "B46"]
[WhiteElo "1875"]
[BlackElo "2371"]
[Annotator "NA"]
[PlyCount "58"]
[EventDate "2019.07.31"]
[EventType "swiss"]
[EventCountry "RUS"]
[SourceTitle "playchess.com"]
[Source "ChessBase"]
[SourceQuality "1"]
[TimeControl "5400+30"]

1. e4 {[%emt 0:18:42]} c5 {[%emt 0:33:41]} 2. Nf3 {[%emt 0:03:48]} e6 {[%emt 0:08:39]} 3. d4 {[%emt 0:01:25]} cxd4 {[%emt 0:01:34]} 4. Nxd4 {[%emt 0:01:53]} Nc6 {[%emt 0:06:09]} 5. Nc3 {[%emt 0:01:44]} a6 {[%emt 0:03:10]} 6. Be2 {[%emt 0:04:57]} Nge7 {[%emt 0:02:03]} 7. O-O {[%emt 0:00:28]} Nxd4 {[%emt 0:08:42]} 8. Qxd4 {[%emt 0:00:30]} Nc6 {[%emt 0:00:04]} 9. Qd1 {[%emt 0:07:05]} Be7 {[%emt 0:03:27]} 10. Kh1 {[%emt 0:15:16]} b5 {[%emt 0:09:00]} 11. a3 {[%emt 0:00:42]} O-O {[%emt 0:02:00]} 12. f4 {[%emt 0:00:16]} Bb7 {[%emt 0:02:54]} 13. Be3 {[%emt 0:01:44]} Rc8 {[%emt 0:01:47]} 14. Bf3 {[%emt 0:00:27]} Na5 {[%emt 0:00:27]} 15. e5 {[%emt 0:00:14]} Bxf3 {[%emt 0:13:53]} 16. Qxf3 {[%emt 0:38:49]} Nc4 {[%emt 0:00:30]} 17. Bc1 {[%emt 0:00:30]} f6 {[%emt 0:00:30]} 18. exf6 {[%emt 0:00:30]} Bxf6 {[%emt 0:00:30]} 19. Qd3 {[%emt 0:00:30]} d5 {[%emt 0:00:30]} 20. f5 {[%emt 0:00:30]} Bxc3 {[%emt 0:00:30]} 21. Qxc3 {[%emt 0:00:30]} Nd6 {[%emt 0:00:30]} 22. Qe5 {[%emt 0:00:30]} Qd7 {[%emt 0:00:30]} 23. f6 {[%emt 0:00:30]} Ne4 {[%emt 0:00:30]} 24. Bg5 {[%emt 0:00:30]} Rxc2 {[%emt 0:00:30]} 25. fxg7 {[%emt 0:00:30]} Nf2+ {[%emt 0:00:30]} 26. Kg1 {[%emt 0:00:30]} Rf5 {[%emt 0:00:30]} 27. Qb8+ {[%emt 0:00:30]} Rc8 {[%emt 0:00:30]} 28. Qg3 {[%emt 0:00:30]} Ne4 {[%emt 0:00:30]} 29. Qh4 {[%emt 0:00:30]} Rxg5 {[%emt 0:00:30]} 0-1

[Event "Eurasia Open Cup 2019"]
[Site "Ekaterinburg"]
[Date "2019.07.31"]
[Round "1.43"]
[White "Fotin, Vladimir"]
[Black "Yumshanov, Leonid"]
[Result "1-0"]
[ECO "A16"]
[WhiteElo "2368"]
[BlackElo "1864"]
[Annotator "NA"]
[PlyCount "53"]
[EventDate "2019.07.31"]
[EventType "swiss"]
[EventCountry "RUS"]
[SourceTitle "playchess.com"]
[Source "ChessBase"]
[SourceQuality "1"]
[TimeControl "5400+30"]

1. Nf3 {[%emt 0:45:47]} Nf6 {[%emt 0:20:43]} 2. c4 {[%emt 0:07:11]} g6 {[%emt 0:01:35]} 3. Nc3 {[%emt 0:00:49]} d5 {[%emt 0:00:11]} 4. cxd5 {[%emt 0:05:26]} Nxd5 {[%emt 0:06:26]} 5. Qc2 {[%emt 0:01:27]} Nb6 {[%emt 0:00:17]} 6. d4 {[%emt 0:04:20]} Nc6 {[%emt 0:03:27]} 7. e4 {[%emt 0:03:33]} Bg7 {[%emt 0:01:53]} 8. d5 {[%emt 0:08:36]} Na5 {[%emt 0:05:43]} 9. Be2 {[%emt 0:00:12]} O-O {[%emt 0:00:06]} 10. O-O {[%emt 0:01:16]} c6 {[%emt 0:00:32]} 11. dxc6 {[%emt 0:04:49]} Nxc6 {[%emt 0:04:53]} 12. Rd1 {[%emt 0:00:07]} Bd7 {[%emt 0:00:51]} 13. Bf4 {[%emt 0:00:00]} e5 {[%emt 0:00:24]} 14. Be3 {[%emt 0:00:14]} Qe7 {[%emt 0:01:12]} 15. Bxb6 {[%emt 0:08:23]} axb6 {[%emt 0:06:30]} 16. Nd5 {[%emt 0:01:51]} Qc5 {[%emt 0:02:47]} 17. Qxc5 {[%emt 0:01:28]} bxc5 {[%emt 0:03:24]} 18. Nb6 {[%emt 0:01:18]} Be6 {[%emt 0:01:46]} 19. Nxa8 {[%emt 0:00:27]} Rxa8 {[%emt 0:00:07]} 20. Rdc1 {[%emt 0:00:28]} b6 {[%emt 0:00:40]} 21. Bc4 {[%emt 0:01:00]} Bg4 {[%emt 0:37:03]} 22. Bd5 {[%emt 0:02:18]} Rc8 {[%emt 0:00:30]} 23. Ng5 {[%emt 0:00:30]} Nd8 {[%emt 0:00:30]} 24. b4 {[%emt 0:00:30]} h6 {[%emt 0:00:30]} 25. Nf3 {[%emt 0:00:30]} Ne6 {[%emt 0:00:30]} 26. bxc5 {[%emt 0:00:30]} Nxc5 {[%emt 0:00:30]} 27. Rab1 {[%emt 0:00:30]} 1-0